[Event "December 5 Late 2023"]
[Site "https://www.chess.com"]
[Date "2023.12.05"]
[Round "10"]
[White "Gutkin, Ilya"]
[Black "Curtis, John"]
[Result "1/2-1/2"]
[Board "93"]
[TimeControl "180+1"]
[WhiteFideId "16203470"]
[BlackFideId "3200256"]
[WhiteElo "2362"]
[BlackElo "2219"]
[WhiteTeam "GER"]
[BlackTeam "AUS"]
[WhiteClock "0:00:01"]
[BlackClock "0:00:17"]

1. e4 {[%clk 0:03:00]}  e6 {[%clk 0:03:00]} 2. d4 {[%clk 0:03:00]}  b6 {[%clk 0:03:00]} 3. Bd3 {[%clk 0:02:57]}  Bb7 {[%clk 0:03:01]} 4. Qe2 {[%clk 0:02:54]}  c5 {[%clk 0:03:00]} 5. d5 {[%clk 0:02:50]}  Nf6 {[%clk 0:02:55]} 6. c4 {[%clk 0:02:49]}  e5 {[%clk 0:02:53]} 7. Nc3 {[%clk 0:02:49]}  d6 {[%clk 0:02:53]} 8. Bg5 {[%clk 0:02:43]}  Be7 {[%clk 0:02:53]} 9. Bxf6 {[%clk 0:02:38]}  Bxf6 {[%clk 0:02:52]} 10. Nf3 {[%clk 0:02:35]}  O-O {[%clk 0:02:49]} 11. h4 {[%clk 0:02:34]}  Bc8 {[%clk 0:02:49]} 12. Nd2 {[%clk 0:02:02]}  Na6 {[%clk 0:02:45]} 13. g4 {[%clk 0:01:55]}  Bxh4 {[%clk 0:02:29]} 14. Nf3 {[%clk 0:01:52]}  Bg5 {[%clk 0:02:29]} 15. Nxg5 {[%clk 0:01:50]}  Qxg5 {[%clk 0:02:27]} 16. Rh5 {[%clk 0:01:50]}  Qxg4 {[%clk 0:02:25]} 17. O-O-O {[%clk 0:01:48]}  Qxe2 {[%clk 0:02:24]} 18. Bxe2 {[%clk 0:01:49]}  Nc7 {[%clk 0:02:21]} 19. Rdh1 {[%clk 0:01:43]}  h6 {[%clk 0:02:21]} 20. Rg1 {[%clk 0:01:44]}  Kh7 {[%clk 0:02:19]} 21. Kd2 {[%clk 0:01:38]}  g6 {[%clk 0:02:19]} 22. Rh2 {[%clk 0:01:36]}  Rh8 {[%clk 0:02:14]} 23. Ke3 {[%clk 0:01:22]}  Bd7 {[%clk 0:02:14]} 24. Bd1 {[%clk 0:01:09]}  Rag8 {[%clk 0:02:11]} 25. Ne2 {[%clk 0:01:07]}  f5 {[%clk 0:02:10]} 26. f4 {[%clk 0:01:07]}  exf4+ {[%clk 0:02:00]} 27. Nxf4 {[%clk 0:01:07]}  fxe4 {[%clk 0:01:53]} 28. Rgh1 {[%clk 0:00:49]}  Kg7 {[%clk 0:01:51]} 29. Rg1 {[%clk 0:00:41]}  Bf5 {[%clk 0:01:46]} 30. Bg4 {[%clk 0:00:23]}  Kf6 {[%clk 0:01:41]} 31. Bxf5 {[%clk 0:00:15]}  Kxf5 {[%clk 0:01:36]} 32. Rf2 {[%clk 0:00:15]}  g5 {[%clk 0:01:04]} 33. Ne6+ {[%clk 0:00:14]}  Kg6 {[%clk 0:01:04]} 34. Nxc7 {[%clk 0:00:14]}  Rf8 {[%clk 0:00:57]} 35. Rxf8 {[%clk 0:00:09]}  Rxf8 {[%clk 0:00:56]} 36. Kxe4 {[%clk 0:00:09]}  Rf2 {[%clk 0:00:52]} 37. Nb5 {[%clk 0:00:09]}  Rxb2 {[%clk 0:00:45]} 38. Nxd6 {[%clk 0:00:09]}  Rxa2 {[%clk 0:00:44]} 39. Nb5 {[%clk 0:00:07]}  Rd2 {[%clk 0:00:41]} 40. d6 {[%clk 0:00:04]}  Kf7 {[%clk 0:00:38]} 41. Ke5 {[%clk 0:00:04]}  a6 {[%clk 0:00:36]} 42. Nc7 {[%clk 0:00:04]}  Rd4 {[%clk 0:00:33]} 43. Nd5 {[%clk 0:00:03]}  Rxc4 {[%clk 0:00:30]} 44. Rf1+ {[%clk 0:00:04]}  Ke8 {[%clk 0:00:28]} 45. Nc7+ {[%clk 0:00:04]}  Kd7 {[%clk 0:00:27]} 46. Rf7+ {[%clk 0:00:05]}  Kc6 {[%clk 0:00:27]} 47. Ne6 {[%clk 0:00:05]}  Rc1 {[%clk 0:00:26]} 48. Rc7+ {[%clk 0:00:04]}  Kb5 {[%clk 0:00:25]} 49. d7 {[%clk 0:00:05]}  Re1+ {[%clk 0:00:23]} 50. Kd6 {[%clk 0:00:04]}  Rd1+ {[%clk 0:00:23]} 51. Ke7 {[%clk 0:00:05]}  c4 {[%clk 0:00:20]} 52. d8=Q {[%clk 0:00:05]}  Rxd8 {[%clk 0:00:20]} 53. Kxd8 {[%clk 0:00:06]}  Kb4 {[%clk 0:00:19]} 54. Ke7 {[%clk 0:00:05]}  b5 {[%clk 0:00:20]} 55. Kf6 {[%clk 0:00:05]}  a5 {[%clk 0:00:20]} 56. Kg6 {[%clk 0:00:05]}  a4 {[%clk 0:00:21]} 57. Kxh6 {[%clk 0:00:05]}  g4 {[%clk 0:00:21]} 58. Kg5 {[%clk 0:00:05]}  a3 {[%clk 0:00:22]} 59. Kxg4 {[%clk 0:00:03]}  a2 {[%clk 0:00:22]} 60. Ra7 {[%clk 0:00:04]}  Kb3 {[%clk 0:00:22]} 61. Nd4+ {[%clk 0:00:04]}  Kb2 {[%clk 0:00:19]} 62. Nxb5 {[%clk 0:00:03]}  a1=Q {[%clk 0:00:18]} 63. Rxa1 {[%clk 0:00:01]}  Kxa1 {[%clk 0:00:19]} 64. Kf3 {[%clk 0:00:01]}  c3 {[%clk 0:00:17]} 65. Nxc3 {[%clk 0:00:01]} 1/2-1/2

[Event "December 5 Late 2023"]
[Site "https://www.chess.com"]
[Date "2023.12.05"]
[Round "10"]
[White "Akhayan, Ruben"]
[Black "Floresvillar Gonzalez, Luis Migu"]
[Result "1-0"]
[Board "94"]
[TimeControl "180+1"]
[WhiteFideId "204439"]
[BlackFideId "5100542"]
[WhiteElo "2361"]
[BlackElo "2211"]
[WhiteTeam "BEL"]
[BlackTeam "MEX"]
[WhiteClock "0:00:08"]
[BlackClock "0:00:00"]

1. e4 {[%clk 0:03:00]}  c6 {[%clk 0:03:00]} 2. d4 {[%clk 0:02:59]}  d5 {[%clk 0:03:01]} 3. exd5 {[%clk 0:03:00]}  cxd5 {[%clk 0:03:01]} 4. c4 {[%clk 0:03:00]}  Nf6 {[%clk 0:02:59]} 5. Nc3 {[%clk 0:03:01]}  e6 {[%clk 0:02:59]} 6. Nf3 {[%clk 0:03:00]}  Bb4 {[%clk 0:02:59]} 7. c5 {[%clk 0:02:53]}  O-O {[%clk 0:02:56]} 8. Bd3 {[%clk 0:02:52]}  Ne4 {[%clk 0:02:55]} 9. O-O {[%clk 0:02:49]}  Bxc3 {[%clk 0:02:42]} 10. bxc3 {[%clk 0:02:48]}  Nxc3 {[%clk 0:02:41]} 11. Qc2 {[%clk 0:02:47]}  Ne4 {[%clk 0:02:41]} 12. Bxe4 {[%clk 0:02:47]}  dxe4 {[%clk 0:02:41]} 13. Qxe4 {[%clk 0:02:47]}  Nc6 {[%clk 0:02:38]} 14. Be3 {[%clk 0:02:34]}  f5 {[%clk 0:02:35]} 15. Qf4 {[%clk 0:02:15]}  Bd7 {[%clk 0:02:33]} 16. h3 {[%clk 0:02:12]}  Ne7 {[%clk 0:02:24]} 17. Ne5 {[%clk 0:02:11]}  Nd5 {[%clk 0:02:23]} 18. Qf3 {[%clk 0:02:11]}  Bc6 {[%clk 0:02:20]} 19. Nxc6 {[%clk 0:02:10]}  bxc6 {[%clk 0:02:19]} 20. Rfe1 {[%clk 0:02:09]}  Re8 {[%clk 0:02:09]} 21. Rad1 {[%clk 0:02:07]}  Rb8 {[%clk 0:02:08]} 22. Bf4 {[%clk 0:02:06]}  Rb2 {[%clk 0:02:05]} 23. Be5 {[%clk 0:02:03]}  Rxa2 {[%clk 0:02:03]} 24. Qg3 {[%clk 0:01:58]}  Qd7 {[%clk 0:02:00]} 25. Rb1 {[%clk 0:01:53]}  Qf7 {[%clk 0:01:45]} 26. Rb3 {[%clk 0:01:48]}  Qg6 {[%clk 0:01:44]} 27. Qf3 {[%clk 0:01:29]}  h6 {[%clk 0:01:27]} 28. Reb1 {[%clk 0:01:28]}  Kh7 {[%clk 0:01:10]} 29. Rb7 {[%clk 0:00:56]}  Rg8 {[%clk 0:00:54]} 30. Qb3 {[%clk 0:00:48]}  Re2 {[%clk 0:00:38]} 31. Qf3 {[%clk 0:00:38]}  Re4 {[%clk 0:00:37]} 32. Rxa7 {[%clk 0:00:34]}  f4 {[%clk 0:00:25]} 33. Kh2 {[%clk 0:00:32]}  Rxe5 {[%clk 0:00:25]} 34. Rbb7 {[%clk 0:00:27]}  Rg5 {[%clk 0:00:23]} 35. g4 {[%clk 0:00:24]}  fxg3+ {[%clk 0:00:21]} 36. fxg3 {[%clk 0:00:24]}  Qc2+ {[%clk 0:00:20]} 37. Kh1 {[%clk 0:00:23]}  Rf5 {[%clk 0:00:18]} 38. Qg2 {[%clk 0:00:19]}  Qd1+ {[%clk 0:00:17]} 39. Kh2 {[%clk 0:00:18]}  Ne3 {[%clk 0:00:16]} 40. Qb2 {[%clk 0:00:14]}  Nf1+ {[%clk 0:00:15]} 41. Kg2 {[%clk 0:00:15]}  Qf3+ {[%clk 0:00:12]} 42. Kg1 {[%clk 0:00:15]}  Qxg3+ {[%clk 0:00:10]} 43. Qg2 {[%clk 0:00:14]}  Qxg2+ {[%clk 0:00:10]} 44. Kxg2 {[%clk 0:00:15]}  Ne3+ {[%clk 0:00:10]} 45. Kg3 {[%clk 0:00:15]}  Nc2 {[%clk 0:00:10]} 46. d5 {[%clk 0:00:14]}  exd5 {[%clk 0:00:09]} 47. Rc7 {[%clk 0:00:13]}  d4 {[%clk 0:00:08]} 48. Rd7 {[%clk 0:00:13]}  Rxc5 {[%clk 0:00:07]} 49. Kg4 {[%clk 0:00:12]}  Rg5+ {[%clk 0:00:07]} 50. Kf4 {[%clk 0:00:13]}  c5 {[%clk 0:00:07]} 51. h4 {[%clk 0:00:12]}  Rf8+ {[%clk 0:00:05]} 52. Ke4 {[%clk 0:00:12]}  Rg4+ {[%clk 0:00:04]} 53. Kd3 {[%clk 0:00:11]}  Nb4+ {[%clk 0:00:03]} 54. Kc4 {[%clk 0:00:11]}  d3+ {[%clk 0:00:00]} 55. Kb5 {[%clk 0:00:08]} 1-0

[Event "December 5 Late 2023"]
[Site "https://www.chess.com"]
[Date "2023.12.05"]
[Round "10"]
[White "Duncan, Chris R"]
[Black "youngdinousaur"]
[Result "0-1"]
[Board "96"]
[TimeControl "180+1"]
[WhiteFideId "403091"]
[WhiteElo "2200"]
[BlackElo "2323"]
[WhiteTeam "ENG"]
[WhiteClock "0:01:28"]
[BlackClock "0:02:13"]

1. e4 {[%clk 0:03:00]}  c5 {[%clk 0:02:59]} 2. Nf3 {[%clk 0:03:00]}  e6 {[%clk 0:03:00]} 3. d4 {[%clk 0:03:00]}  cxd4 {[%clk 0:03:00]} 4. Nxd4 {[%clk 0:03:00]}  Nf6 {[%clk 0:03:01]} 5. Nc3 {[%clk 0:02:59]}  Nc6 {[%clk 0:03:02]} 6. Bg5 {[%clk 0:02:56]}  Bb4 {[%clk 0:03:01]} 7. Be2 {[%clk 0:02:39]}  Qa5 {[%clk 0:02:58]} 8. Bxf6 {[%clk 0:02:39]}  Bxc3+ {[%clk 0:02:57]} 9. bxc3 {[%clk 0:02:31]}  Qxc3+ {[%clk 0:02:58]} 10. Kf1 {[%clk 0:02:30]}  gxf6 {[%clk 0:02:58]} 11. Nb5 {[%clk 0:02:30]}  Qe5 {[%clk 0:02:47]} 12. c4 {[%clk 0:02:16]}  a6 {[%clk 0:02:46]} 13. Nd6+ {[%clk 0:02:16]}  Ke7 {[%clk 0:02:46]} 14. c5 {[%clk 0:02:16]}  Qxc5 {[%clk 0:02:34]} 15. Nc4 {[%clk 0:01:40]}  b5 {[%clk 0:02:29]} 16. Ne3 {[%clk 0:01:39]}  Qd4 {[%clk 0:02:18]} 17. Qc2 {[%clk 0:01:28]}  Qxa1+ {[%clk 0:02:13]} 0-1

[Event "December 5 Late 2023"]
[Site "https://www.chess.com"]
[Date "2023.12.05"]
[Round "10"]
[White "Cooper, Aaron"]
[Black "Keller, Peter"]
[Result "0-1"]
[Board "97"]
[TimeControl "180+1"]
[WhiteFideId "2634945"]
[BlackFideId "1272105"]
[WhiteElo "2305"]
[BlackElo "2183"]
[WhiteTeam "CAN"]
[BlackTeam "GER"]
[WhiteClock "0:00:00"]
[BlackClock "0:00:05"]

1. d4 {[%clk 0:03:00]}  d5 {[%clk 0:02:53]} 2. Bf4 {[%clk 0:03:00]}  Bf5 {[%clk 0:02:50]} 3. e3 {[%clk 0:02:58]}  c6 {[%clk 0:02:44]} 4. Nf3 {[%clk 0:02:57]}  e6 {[%clk 0:02:33]} 5. Bd3 {[%clk 0:02:52]}  Bg6 {[%clk 0:02:25]} 6. O-O {[%clk 0:02:44]}  Bd6 {[%clk 0:02:21]} 7. Re1 {[%clk 0:02:40]}  Nf6 {[%clk 0:02:20]} 8. Bg5 {[%clk 0:02:35]}  Nbd7 {[%clk 0:02:12]} 9. c4 {[%clk 0:02:33]}  Bxd3 {[%clk 0:01:57]} 10. Qxd3 {[%clk 0:02:31]}  h6 {[%clk 0:01:44]} 11. Bh4 {[%clk 0:02:30]}  g5 {[%clk 0:01:43]} 12. Bg3 {[%clk 0:02:29]}  Bxg3 {[%clk 0:01:42]} 13. hxg3 {[%clk 0:02:28]}  Ne4 {[%clk 0:01:43]} 14. Nc3 {[%clk 0:02:13]}  f5 {[%clk 0:01:39]} 15. Nd2 {[%clk 0:02:00]}  Ndf6 {[%clk 0:01:28]} 16. g4 {[%clk 0:01:30]}  Nxg4 {[%clk 0:01:06]} 17. f3 {[%clk 0:01:27]}  Nxd2 {[%clk 0:01:06]} 18. Qxd2 {[%clk 0:01:10]}  Nf6 {[%clk 0:01:04]} 19. cxd5 {[%clk 0:01:02]}  exd5 {[%clk 0:01:03]} 20. Qd3 {[%clk 0:00:52]}  Qd7 {[%clk 0:00:59]} 21. Rac1 {[%clk 0:00:40]}  O-O {[%clk 0:00:37]} 22. Na4 {[%clk 0:00:32]}  Rae8 {[%clk 0:00:34]} 23. Nc5 {[%clk 0:00:31]}  Qc8 {[%clk 0:00:34]} 24. b4 {[%clk 0:00:29]}  Re7 {[%clk 0:00:29]} 25. a4 {[%clk 0:00:27]}  a6 {[%clk 0:00:27]} 26. a5 {[%clk 0:00:26]}  Ne8 {[%clk 0:00:19]} 27. Re2 {[%clk 0:00:18]}  Nd6 {[%clk 0:00:20]} 28. Rce1 {[%clk 0:00:18]}  Rfe8 {[%clk 0:00:18]} 29. e4 {[%clk 0:00:14]}  dxe4 {[%clk 0:00:18]} 30. fxe4 {[%clk 0:00:15]}  fxe4 {[%clk 0:00:18]} 31. Nxe4 {[%clk 0:00:14]}  Nxe4 {[%clk 0:00:17]} 32. Rxe4 {[%clk 0:00:14]}  Rxe4 {[%clk 0:00:15]} 33. Rxe4 {[%clk 0:00:13]}  Kg7 {[%clk 0:00:14]} 34. Re5 {[%clk 0:00:10]}  Qd8 {[%clk 0:00:11]} 35. Qe3 {[%clk 0:00:08]}  Rxe5 {[%clk 0:00:08]} 36. Qxe5+ {[%clk 0:00:08]}  Qf6 {[%clk 0:00:09]} 37. Qc7+ {[%clk 0:00:08]}  Qf7 {[%clk 0:00:10]} 38. Qe5+ {[%clk 0:00:08]}  Kg8 {[%clk 0:00:10]} 39. Qb8+ {[%clk 0:00:06]}  Kh7 {[%clk 0:00:11]} 40. Qe5 {[%clk 0:00:06]}  Qg7 {[%clk 0:00:11]} 41. Qe4+ {[%clk 0:00:05]}  Kh8 {[%clk 0:00:11]} 42. d5 {[%clk 0:00:05]}  cxd5 {[%clk 0:00:09]} 43. Qxd5 {[%clk 0:00:06]}  g4 {[%clk 0:00:09]} 44. Qd8+ {[%clk 0:00:05]}  Kh7 {[%clk 0:00:09]} 45. Qd3+ {[%clk 0:00:05]}  Kg8 {[%clk 0:00:10]} 46. Qe4 {[%clk 0:00:06]}  g3 {[%clk 0:00:10]} 47. Kf1 {[%clk 0:00:06]}  Qf7+ {[%clk 0:00:09]} 48. Ke2 {[%clk 0:00:05]}  Kf8 {[%clk 0:00:08]} 49. Qf3 {[%clk 0:00:04]}  h5 {[%clk 0:00:06]} 50. Qe4 {[%clk 0:00:00]}  Qe7 {[%clk 0:00:05]} 0-1

[Event "December 5 Late 2023"]
[Site "https://www.chess.com"]
[Date "2023.12.05"]
[Round "10"]
[White "Joubert, Dantelle"]
[Black "Biliy, Vadim"]
[Result "0-1"]
[Board "99"]
[TimeControl "180+1"]
[WhiteFideId "14310813"]
[BlackFideId "14114127"]
[WhiteElo "2155"]
[BlackElo "2292"]
[WhiteTeam "RSA"]
[BlackTeam "UKR"]
[WhiteClock "0:00:10"]
[BlackClock "0:00:25"]

1. d4 {[%clk 0:03:00]}  c5 {[%clk 0:02:59]} 2. d5 {[%clk 0:02:57]}  f5 {[%clk 0:02:59]} 3. c4 {[%clk 0:02:45]}  Nf6 {[%clk 0:02:58]} 4. Nc3 {[%clk 0:02:44]}  g6 {[%clk 0:02:57]} 5. g3 {[%clk 0:02:39]}  Bg7 {[%clk 0:02:57]} 6. Bg2 {[%clk 0:02:36]}  O-O {[%clk 0:02:57]} 7. Nf3 {[%clk 0:02:31]}  Ne4 {[%clk 0:02:50]} 8. Nxe4 {[%clk 0:02:22]}  fxe4 {[%clk 0:02:50]} 9. Ng5 {[%clk 0:02:22]}  b5 {[%clk 0:02:49]} 10. Qc2 {[%clk 0:02:01]}  bxc4 {[%clk 0:02:43]} 11. Qxc4 {[%clk 0:01:55]}  Ba6 {[%clk 0:02:42]} 12. Qxe4 {[%clk 0:01:49]}  Bb7 {[%clk 0:02:14]} 13. h4 {[%clk 0:01:31]}  Rf5 {[%clk 0:02:06]} 14. Qd3 {[%clk 0:01:23]}  Qb6 {[%clk 0:01:59]} 15. e4 {[%clk 0:01:16]}  Qb4+ {[%clk 0:01:52]} 16. Bd2 {[%clk 0:01:11]}  Qxb2 {[%clk 0:01:34]} 17. Rb1 {[%clk 0:01:09]}  Ba6 {[%clk 0:01:26]} 18. Rxb2 {[%clk 0:01:06]}  Bxd3 {[%clk 0:01:25]} 19. exf5 {[%clk 0:01:06]}  Bxb2 {[%clk 0:01:24]} 20. d6 {[%clk 0:00:58]}  Nc6 {[%clk 0:01:23]} 21. Bd5+ {[%clk 0:00:45]}  Kg7 {[%clk 0:01:21]} 22. dxe7 {[%clk 0:00:38]}  Re8 {[%clk 0:01:19]} 23. fxg6 {[%clk 0:00:28]}  Rxe7+ {[%clk 0:01:16]} 24. Be3 {[%clk 0:00:27]}  hxg6 {[%clk 0:01:11]} 25. h5 {[%clk 0:00:25]}  c4 {[%clk 0:01:08]} 26. h6+ {[%clk 0:00:21]}  Kh8 {[%clk 0:01:07]} 27. Kd2 {[%clk 0:00:16]}  Nb4 {[%clk 0:01:03]} 28. Nf7+ {[%clk 0:00:11]}  Kh7 {[%clk 0:00:58]} 29. Ng5+ {[%clk 0:00:11]}  Kh8 {[%clk 0:00:58]} 30. Nf7+ {[%clk 0:00:10]}  Rxf7 {[%clk 0:00:57]} 31. Bxf7 {[%clk 0:00:09]}  c3+ {[%clk 0:00:56]} 32. Kd1 {[%clk 0:00:06]}  c2+ {[%clk 0:00:46]} 33. Kd2 {[%clk 0:00:06]}  Kh7 {[%clk 0:00:39]} 34. Bb3 {[%clk 0:00:02]}  c1=Q+ {[%clk 0:00:38]} 35. Rxc1 {[%clk 0:00:01]}  Bxc1+ {[%clk 0:00:38]} 36. Kxc1 {[%clk 0:00:02]}  a5 {[%clk 0:00:33]} 37. Kd2 {[%clk 0:00:03]}  Bb1 {[%clk 0:00:31]} 38. a3 {[%clk 0:00:02]}  Nc6 {[%clk 0:00:30]} 39. Bc2 {[%clk 0:00:03]}  Bxc2 {[%clk 0:00:28]} 40. Kxc2 {[%clk 0:00:03]}  Ne5 {[%clk 0:00:28]} 41. Kc3 {[%clk 0:00:02]}  Ng4 {[%clk 0:00:28]} 42. Kc4 {[%clk 0:00:02]}  Nxe3+ {[%clk 0:00:27]} 43. fxe3 {[%clk 0:00:01]}  Kxh6 {[%clk 0:00:28]} 44. Kd5 {[%clk 0:00:01]}  Kg5 {[%clk 0:00:28]} 45. e4 {[%clk 0:00:02]}  Kg4 {[%clk 0:00:28]} 46. e5 {[%clk 0:00:02]}  Kxg3 {[%clk 0:00:28]} 47. Kd6 {[%clk 0:00:02]}  Kf4 {[%clk 0:00:27]} 48. e6 {[%clk 0:00:02]}  dxe6 {[%clk 0:00:27]} 49. Kxe6 {[%clk 0:00:03]}  g5 {[%clk 0:00:27]} 50. Kd5 {[%clk 0:00:04]}  g4 {[%clk 0:00:27]} 51. Kc5 {[%clk 0:00:05]}  g3 {[%clk 0:00:27]} 52. Kb5 {[%clk 0:00:06]}  g2 {[%clk 0:00:28]} 53. Kxa5 {[%clk 0:00:07]}  g1=Q {[%clk 0:00:28]} 54. Kb5 {[%clk 0:00:08]}  Qa7 {[%clk 0:00:28]} 55. a4 {[%clk 0:00:08]}  Ke5 {[%clk 0:00:26]} 56. a5 {[%clk 0:00:09]}  Kd6 {[%clk 0:00:26]} 57. a6 {[%clk 0:00:10]}  Kc7 {[%clk 0:00:25]} 0-1

[Event "December 5 Late 2023"]
[Site "https://www.chess.com"]
[Date "2023.12.05"]
[Round "10"]
[White "Kujawski, Adam"]
[Black "Mangialardo, Tiago Carvalho"]
[Result "1-0"]
[Board "101"]
[TimeControl "180+1"]
[WhiteFideId "1100920"]
[BlackFideId "2130718"]
[WhiteElo "2281"]
[BlackElo "2113"]
[WhiteTeam "POL"]
[BlackTeam "BRA"]
[WhiteClock "0:00:23"]
[BlackClock "0:00:00"]

1. Nf3 {[%clk 0:03:00]}  Nf6 {[%clk 0:02:58]} 2. c4 {[%clk 0:02:59]}  g6 {[%clk 0:02:56]} 3. b3 {[%clk 0:02:59]}  Bg7 {[%clk 0:02:55]} 4. Bb2 {[%clk 0:02:59]}  O-O {[%clk 0:02:56]} 5. g3 {[%clk 0:02:59]}  c5 {[%clk 0:02:56]} 6. Bg2 {[%clk 0:02:58]}  Nc6 {[%clk 0:02:56]} 7. O-O {[%clk 0:02:49]}  d5 {[%clk 0:02:54]} 8. cxd5 {[%clk 0:02:47]}  Nxd5 {[%clk 0:02:55]} 9. Bxg7 {[%clk 0:02:46]}  Kxg7 {[%clk 0:02:56]} 10. Nc3 {[%clk 0:02:45]}  Nxc3 {[%clk 0:02:49]} 11. dxc3 {[%clk 0:02:44]}  Bf5 {[%clk 0:02:47]} 12. Qe1 {[%clk 0:02:24]}  Qa5 {[%clk 0:02:42]} 13. e4 {[%clk 0:02:17]}  Be6 {[%clk 0:02:30]} 14. Ng5 {[%clk 0:01:49]}  Rad8 {[%clk 0:02:24]} 15. Nxe6+ {[%clk 0:01:24]}  fxe6 {[%clk 0:02:25]} 16. e5 {[%clk 0:01:17]}  Rd3 {[%clk 0:02:19]} 17. Bxc6 {[%clk 0:01:07]}  bxc6 {[%clk 0:02:19]} 18. Qe4 {[%clk 0:00:57]}  Qxc3 {[%clk 0:02:12]} 19. Qxc6 {[%clk 0:00:53]}  Qxe5 {[%clk 0:02:09]} 20. Rae1 {[%clk 0:00:49]}  Qd4 {[%clk 0:01:10]} 21. Qxe6 {[%clk 0:00:47]}  Rf7 {[%clk 0:01:09]} 22. Qe5+ {[%clk 0:00:45]}  Kh6 {[%clk 0:00:50]} 23. Re4 {[%clk 0:00:43]}  Qxe5 {[%clk 0:00:33]} 24. Rxe5 {[%clk 0:00:44]}  Rd2 {[%clk 0:00:30]} 25. Rxc5 {[%clk 0:00:31]}  Rxa2 {[%clk 0:00:29]} 26. f4 {[%clk 0:00:30]}  Rb2 {[%clk 0:00:19]} 27. Rc3 {[%clk 0:00:24]}  Rf6 {[%clk 0:00:10]} 28. Rf2 {[%clk 0:00:24]}  Rxf2 {[%clk 0:00:00]} 29. Kxf2 {[%clk 0:00:23]} 1-0

[Event "December 5 Late 2023"]
[Site "https://www.chess.com"]
[Date "2023.12.05"]
[Round "10"]
[White "Desideri, Ricardo Maruchi"]
[Black "Clarke, Matthew"]
[Result "0-1"]
[Board "106"]
[TimeControl "180+1"]
[WhiteFideId "2110440"]
[BlackFideId "3227804"]
[WhiteElo "2019"]
[BlackElo "2225"]
[WhiteTeam "BRA"]
[BlackTeam "AUS"]
[WhiteClock "0:00:00"]
[BlackClock "0:00:13"]

1. e4 {[%clk 0:03:00]}  e5 {[%clk 0:02:59]} 2. f4 {[%clk 0:03:01]}  exf4 {[%clk 0:02:58]} 3. Bc4 {[%clk 0:03:01]}  Qh4+ {[%clk 0:02:56]} 4. Kf1 {[%clk 0:03:01]}  d6 {[%clk 0:02:43]} 5. d4 {[%clk 0:02:54]}  Bg4 {[%clk 0:02:33]} 6. Nf3 {[%clk 0:02:53]}  Qh6 {[%clk 0:02:31]} 7. Nc3 {[%clk 0:02:51]}  Ne7 {[%clk 0:02:20]} 8. Qd3 {[%clk 0:02:45]}  g5 {[%clk 0:02:13]} 9. Ne2 {[%clk 0:02:29]}  Bg7 {[%clk 0:02:10]} 10. Kg1 {[%clk 0:02:07]}  Nbc6 {[%clk 0:01:59]} 11. h4 {[%clk 0:02:04]}  Bxf3 {[%clk 0:01:58]} 12. gxf3 {[%clk 0:01:47]}  Ng6 {[%clk 0:01:53]} 13. hxg5 {[%clk 0:01:42]}  Qxg5+ {[%clk 0:01:52]} 14. Kf1 {[%clk 0:01:38]}  O-O-O {[%clk 0:01:40]} 15. a4 {[%clk 0:01:35]}  h5 {[%clk 0:01:19]} 16. c3 {[%clk 0:01:25]}  h4 {[%clk 0:01:17]} 17. b4 {[%clk 0:01:21]}  h3 {[%clk 0:01:16]} 18. Rh2 {[%clk 0:01:19]}  Nge5 {[%clk 0:00:27]} 19. dxe5 {[%clk 0:00:55]}  Nxe5 {[%clk 0:00:27]} 20. Qd5 {[%clk 0:00:46]}  c6 {[%clk 0:00:23]} 21. Qa5 {[%clk 0:00:42]}  Qh5 {[%clk 0:00:18]} 22. Qxa7 {[%clk 0:00:28]}  Qxf3+ {[%clk 0:00:17]} 23. Ke1 {[%clk 0:00:29]}  Nxc4 {[%clk 0:00:15]} 24. Bxf4 {[%clk 0:00:15]}  Bxc3+ {[%clk 0:00:13]} 25. Nxc3 {[%clk 0:00:00]}  Qxc3+ {[%clk 0:00:13]} 0-1

[Event "December 5 Late 2023"]
[Site "https://www.chess.com"]
[Date "2023.12.05"]
[Round "10"]
[White "Einarsson, Halldor Gretar"]
[Black "Lohani, Sujana"]
[Result "1-0"]
[Board "107"]
[TimeControl "180+1"]
[WhiteFideId "2300150"]
[BlackFideId "12311987"]
[WhiteElo "2196"]
[BlackElo "2016"]
[WhiteTeam "ISL"]
[BlackTeam "NEP"]
[WhiteClock "0:00:23"]
[BlackClock "0:00:00"]

1. d4 {[%clk 0:02:59]}  d6 {[%clk 0:02:57]} 2. c4 {[%clk 0:02:58]}  e5 {[%clk 0:02:56]} 3. Nc3 {[%clk 0:02:58]}  f5 {[%clk 0:02:48]} 4. dxe5 {[%clk 0:02:40]}  dxe5 {[%clk 0:02:48]} 5. Qxd8+ {[%clk 0:02:40]}  Kxd8 {[%clk 0:02:48]} 6. Bg5+ {[%clk 0:02:40]}  Be7 {[%clk 0:02:43]} 7. O-O-O+ {[%clk 0:02:41]}  Nd7 {[%clk 0:02:32]} 8. Nf3 {[%clk 0:02:32]}  e4 {[%clk 0:02:16]} 9. Bxe7+ {[%clk 0:02:31]}  Nxe7 {[%clk 0:02:15]} 10. Ng5 {[%clk 0:02:24]}  Ke8 {[%clk 0:01:38]} 11. Nb5 {[%clk 0:02:17]}  h6 {[%clk 0:01:27]} 12. Nxc7+ {[%clk 0:02:14]}  Kf8 {[%clk 0:01:12]} 13. Nge6+ {[%clk 0:01:45]}  Kf7 {[%clk 0:01:11]} 14. Nxa8 {[%clk 0:01:26]}  Kxe6 {[%clk 0:01:09]} 15. Nc7+ {[%clk 0:01:25]}  Kf7 {[%clk 0:01:05]} 16. Nb5 {[%clk 0:01:19]}  Nb6 {[%clk 0:00:51]} 17. e3 {[%clk 0:01:12]}  Be6 {[%clk 0:00:44]} 18. b3 {[%clk 0:01:11]}  a6 {[%clk 0:00:41]} 19. Nd6+ {[%clk 0:01:10]}  Kf6 {[%clk 0:00:40]} 20. Nxb7 {[%clk 0:01:09]}  Rb8 {[%clk 0:00:33]} 21. Nc5 {[%clk 0:01:07]}  Nec8 {[%clk 0:00:20]} 22. Be2 {[%clk 0:01:00]}  a5 {[%clk 0:00:19]} 23. Kc2 {[%clk 0:00:50]}  a4 {[%clk 0:00:18]} 24. Rd8 {[%clk 0:00:48]}  axb3+ {[%clk 0:00:17]} 25. axb3 {[%clk 0:00:48]}  Bf7 {[%clk 0:00:14]} 26. Rhd1 {[%clk 0:00:44]}  g5 {[%clk 0:00:09]} 27. R1d6+ {[%clk 0:00:28]}  Ke7 {[%clk 0:00:06]} 28. Rd1 {[%clk 0:00:23]}  Ra8 {[%clk 0:00:00]} 29. Kb2 {[%clk 0:00:23]} 1-0